bitfinex/quotes_BTCUSD_20240730
["timestamp","ask_amount","ask_price","bid_price","bid_amount"]
[1722306875474,1.57846913,66203.0,66202.0,0.01208086]
[1722306875986,1.43773153,66203.0,66202.0,0.01208086]
[1722306876390,1.60366023,66203.0,66202.0,0.01208086]
[1722306876595,1.59924157,66203.0,66202.0,0.01208086]
[1722306876977,1.68320134,66203.0,66202.0,0.01208086]
[1722306877177,1.58924157,66203.0,66202.0,0.01208086]
[1722306877391,1.59924157,66203.0,66202.0,0.01208086]
[1722306877602,1.60924157,66203.0,66202.0,0.01208086]
[1722306877826,1.60960284,66203.0,66202.0,0.01208086]
[1722306878046,1.58960284,66203.0,66202.0,0.01208086]
[1722306878247,1.75029716,66203.0,66202.0,0.01208086]
[1722306878451,1.75112722,66203.0,66202.0,0.01208086]
[1722306878855,1.76112722,66203.0,66202.0,0.01208086]
[1722306879065,1.77512722,66203.0,66202.0,0.01208086]
[1722306879276,1.93557379,66203.0,66202.0,0.01208086]
[1722306879474,2.16325379,66203.0,66202.0,0.00796021]
[1722306879680,2.17295011,66203.0,66202.0,0.00796021]
[1722306879915,2.20095011,66203.0,66202.0,0.00796021]
[1722306880118,2.17725379,66203.0,66202.0,0.00796021]
[1722306880318,2.16325379,66203.0,66202.0,0.00796021]
[1722306880537,2.16725379,66203.0,66202.0,0.00796021]
[1722306880737,2.17725379,66203.0,66202.0,0.00796021]
[1722306880992,2.03080722,66203.0,66202.0,0.00796021]
[1722306881190,2.15348797,66203.0,66202.0,0.00796021]
[1722306881504,2.16748797,66203.0,66202.0,0.00796021]
[1722306881924,2.13948797,66203.0,66202.0,0.00796021]
[1722306882334,2.16748797,66203.0,66202.0,0.00796021]
[1722306882538,2.17748797,66203.0,66202.0,0.00796021]
[1722306883297,2.19118534,66203.0,66202.0,0.00340151]
[1722306883928,2.05049102,66203.0,66202.0,0.00340151]
[1722306884145,0.27804206,66203.0,66202.0,0.12424351]
[1722306884350,0.25050683,66203.0,66202.0,0.75001151]
[1722306884551,0.25050683,66203.0,66202.0,0.90064455]
[1722306884552,0.13570196,66203.0,66202.0,0.90064455]
[1722306884751,0.05169737,66203.0,66202.0,0.90064455]
[1722306884981,0.03769737,66203.0,66202.0,0.90064455]
[1722306885325,0.04069737,66203.0,66202.0,0.65896055]
[1722306885524,0.017,66203.0,66202.0,0.14580151]
[1722306885726,0.017,66203.0,66202.0,0.00340151]
[1722306885727,0.014,66203.0,66202.0,0.00340151]
[1722306885928,0.10374639,66203.0,66202.0,0.00340151]
[1722306886166,0.21688122,66203.0,66202.0,0.00340151]
[1722306886368,0.32372122,66203.0,66202.0,0.00340151]
[1722306886523,0.20488122,66203.0,66202.0,0.00340151]
[1722306886861,0.20288122,66203.0,66202.0,0.00340151]
[1722306887091,0.08974639,66203.0,66202.0,0.00340151]
[1722306887301,0.20295512,66203.0,66202.0,0.12424351]
[1722306887469,0.20294348,66203.0,66202.0,0.00340151]
[1722306887634,0.22663691,66203.0,66202.0,0.00340151]
[1722306887833,0.20294348,66203.0,66202.0,0.00340151]
[1722306888033,0.32378348,66203.0,66202.0,0.00340151]
[1722306888236,0.70841543,66203.0,66202.0,0.00340151]
[1722306889036,0.46673543,66203.0,66202.0,0.00340151]
[1722306889236,0.20594348,66203.0,66202.0,0.00340151]
[1722306890142,0.20594348,66203.0,66202.0,0.00540151]
[1722306890143,0.20694348,66203.0,66202.0,0.00540151]
[1722306890346,0.32784213,66203.0,66202.0,0.00540151]
[1722306890551,0.32684213,66203.0,66202.0,0.00340151]
[1722306890752,0.35053558,66203.0,66202.0,0.00340151]
[1722306890952,0.35053558,66203.0,66202.0,0.00540151]
[1722306891376,0.22969558,66203.0,66202.0,0.00540151]
[1722306892320,0.34640915,66203.0,66202.0,0.00540151]
[1722306892522,0.70888603,66203.0,66202.0,0.00540151]
[1722306893278,0.34636603,66203.0,66202.0,0.00540151]
[1722306893476,0.09274639,66203.0,66202.0,0.00540151]
[1722306893700,0.20579277,66203.0,66202.0,0.00540151]
[1722306894175,0.32663277,66203.0,66202.0,0.00540151]
[1722306894300,0.20579277,66203.0,66202.0,0.00540151]
[1722306894505,0.3448918,66203.0,66202.0,0.00540151]
[1722306894817,0.7074118,66203.0,66202.0,0.00540151]
[1722306895211,0.4657318,66203.0,66202.0,0.00540151]
[1722306895412,0.46561939,66203.0,66202.0,0.00540151]
[1722306895692,1.03320068,66203.0,66202.0,0.00540151]
[1722306895820,1.49265154,66203.0,66202.0,0.00337596]
[1722306896025,1.93665927,66203.0,66202.0,0.00337596]
[1722306896228,2.17022218,66203.0,66202.0,0.00337596]
[1722306896426,2.17022218,66203.0,66200.0,2.0]
[1722306896427,0.63422,66201.0,66200.0,1.99909298]
[1722306896640,2.04466768,66201.0,66200.0,1.99909298]
[1722306897040,2.28635568,66201.0,66200.0,1.99909298]
[1722306897247,2.36165568,66201.0,66200.0,1.99909298]
[1722306897863,2.37565568,66201.0,66200.0,1.99909298]
[1722306898067,2.35565568,66201.0,66200.0,1.99909298]
[1722306898271,2.37565568,66201.0,66200.0,1.99909298]
[1722306899065,2.35565568,66201.0,66200.0,1.99909298]
[1722306899277,2.38535424,66201.0,66200.0,1.99909298]
[1722306899644,2.37565568,66201.0,66200.0,1.99909298]
[1722306899832,2.10395943,66201.0,66200.0,1.99909298]
[1722306900039,1.22098211,66201.0,66200.0,1.99909298]
[1722306900265,1.06277249,66201.0,66200.0,1.99909298]
[1722306900398,1.34832281,66201.0,66200.0,1.99909298]
[1722306900602,1.34832203,66201.0,66200.0,1.99909298]
[1722306900842,1.51301635,66201.0,66200.0,1.99909298]
[1722306901019,1.12063403,66201.0,66200.0,1.99909298]
[1722306901228,1.0679017,66201.0,66200.0,1.99909298]
[1722306901423,0.84196866,66201.0,66200.0,1.99909298]
[1722306901794,0.82796866,66201.0,66200.0,1.99909298]
[1722306902000,0.83324943,66201.0,66200.0,1.99909298]
[1722306902377,0.5084132,66201.0,66200.0,1.99909298]
[1722306902499,0.6152572,66201.0,66200.0,1.99909298]
[1722306902696,0.47071743,66201.0,66200.0,1.99909298]
[1722306902890,0.45671743,66201.0,66200.0,1.99909298]
[1722306903118,0.47071743,66201.0,66200.0,1.99909298]
[1722306903348,0.60556143,66201.0,66200.0,1.99909298]
[1722306903753,0.59156143,66201.0,66200.0,1.99909298]
[1722306903905,1.07493743,66201.0,66200.0,1.99909298]
[1722306904109,0.84424943,66201.0,66200.0,1.99909298]
[1722306904508,1.2208314,66201.0,66200.0,1.99909298]
[1722306904708,1.25236857,66201.0,66200.0,1.99909298]
[1722306905262,1.25005256,66201.0,66200.0,1.99909298]
[1722306905675,1.2737486,66201.0,66200.0,1.99909298]
[1722306906236,1.83876396,66201.0,66200.0,1.99909298]
[1722306906436,2.02493308,66201.0,66200.0,1.99909298]
[1722306906637,2.01293308,66201.0,66200.0,1.99909298]
[1722306907030,2.02693308,66201.0,66200.0,1.99909298]
[1722306907240,2.04693308,66201.0,66200.0,1.99909298]
[1722306908288,1.77594076,66201.0,66200.0,1.99909298]
[1722306908461,2.02169938,66201.0,66200.0,1.99909298]
[1722306908682,1.62931706,66201.0,66200.0,1.99909298]
[1722306908861,1.65231604,66201.0,66200.0,1.99909298]
[1722306909198,1.7622952,66201.0,66200.0,1.99909298]
[1722306909564,1.78599208,66201.0,66200.0,1.99909298]
[1722306909766,1.54430408,66201.0,66200.0,1.99909298]
[1722306910033,0.78208473,66201.0,66200.0,1.99909298]
[1722306910236,0.63754385,66201.0,66200.0,1.99909298]
[1722306910434,0.65419276,66201.0,66200.0,1.99909298]
[1722306910612,0.607647,66201.0,66200.0,1.99909298]
[1722306910823,0.621647,66201.0,66200.0,1.99909298]
[1722306911175,0.621647,66201.0,66200.0,2.25953798]
[1722306911176,0.23428222,66201.0,66200.0,2.25953798]
[1722306911322,0.10274639,66201.0,66200.0,2.74291998]
[1722306911687,0.013,66201.0,66200.0,3.13524402]
[1722306911837,0.027,66201.0,66200.0,3.13524402]
[1722306912003,0.11469817,66201.0,66200.0,3.13524402]
[1722306912202,0.09917148,66201.0,66200.0,3.13524402]
[1722306912402,0.09911881,66201.0,66200.0,3.13524402]
[1722306912683,0.014,66201.0,66200.0,3.13624402]
[1722306912870,0.001,66201.0,66200.0,3.40093502]
[1722306913223,0.009,66201.0,66200.0,3.40093502]
[1722306913422,0.03268951,66201.0,66200.0,3.40185902]
[1722306913807,0.03352951,66201.0,66200.0,3.40385902]
[1722306914009,0.02446499,66201.0,66200.0,3.40085902]
[1722306914225,0.02446499,66201.0,66200.0,3.40385902]
[1722306914429,0.02646499,66201.0,66200.0,3.40485902]
[1722306914661,0.02546499,66201.0,66200.0,3.40185902]
[1722306914873,0.02446499,66201.0,66200.0,3.40085902]
[1722306915025,0.02446499,66201.0,66200.0,3.40185902]
[1722306915231,0.02546499,66201.0,66200.0,3.40185902]
[1722306915435,0.02546499,66201.0,66200.0,3.41032514]
[1722306915632,0.02446499,66201.0,66200.0,3.40932514]
[1722306917072,0.02546499,66201.0,66200.0,3.41032514]
[1722306917490,0.02546499,66201.0,66200.0,3.40932514]
[1722306917491,0.02446499,66201.0,66200.0,3.40932514]
[1722306917685,0.02546499,66201.0,66200.0,3.41132514]
[1722306917891,0.02546499,66201.0,66200.0,3.16863414]
[1722306918298,0.02446499,66201.0,66200.0,3.16763414]
[1722306918458,0.00084,66201.0,66200.0,3.16763414]
[1722306918659,0.00184,66201.0,66200.0,3.16863414]
[1722306918900,0.00184,66201.0,66200.0,3.14563414]
[1722306919072,0.00284,66201.0,66200.0,3.17063414]
[1722306919275,0.00184,66201.0,66200.0,3.16863414]
[1722306919490,0.00184,66201.0,66200.0,2.92694314]
[1722306919710,0.00284,66201.0,66200.0,2.68725214]
[1722306920027,0.00284,66201.0,66200.0,2.92894314]
[1722306920436,0.00284,66201.0,66200.0,3.17063414]
[1722306920802,0.00184,66201.0,66200.0,3.16963414]
[1722306921122,0.00084,66201.0,66200.0,3.16763414]
[1722306921697,0.00184,66201.0,66200.0,3.16963414]
[1722306921815,0.00184,66201.0,66200.0,3.16763414]
[1722306922016,0.00284,66201.0,66200.0,2.92794314]
[1722306922426,0.00184,66201.0,66200.0,3.16763414]
[1722306922651,0.00284,66201.0,66200.0,3.16963414]
[1722306922851,0.00184,66201.0,66200.0,3.16763414]
[1722306923382,0.00384,66201.0,66200.0,3.17063414]
[1722306925489,0.00184,66201.0,66200.0,3.16863414]
[1722306925831,0.00284,66201.0,66200.0,3.17063414]
[1722306926168,0.00284,66201.0,66200.0,3.16863414]
[1722306926409,0.00384,66201.0,66200.0,3.17063414]
[1722306927158,0.00384,66201.0,66200.0,2.92894314]
[1722306927537,0.00384,66201.0,66200.0,3.17063414]
[1722306927725,0.00284,66201.0,66200.0,3.16963414]
[1722306927919,0.00284,66201.0,66200.0,2.92794314]
[1722306928132,0.20209597,66201.0,66200.0,2.00201698]
[1722306928342,0.37487692,66201.0,66200.0,2.00201698]
[1722306928654,0.50895448,66201.0,66200.0,2.00001698]
[1722306928910,0.68991208,66201.0,66200.0,2.00201698]
[1722306929052,0.44922408,66201.0,66200.0,2.00201698]
[1722306929257,0.58777032,66201.0,66200.0,2.00201698]
[1722306929460,0.53417878,66201.0,66200.0,2.00201698]
[1722306929906,0.39415497,66201.0,66200.0,2.00201698]
[1722306930162,0.63584297,66201.0,66200.0,2.00201698]
[1722306930487,0.65778234,66201.0,66200.0,2.00301698]
[1722306930611,0.41359669,66201.0,66200.0,2.00301698]
[1722306930834,0.27494548,66201.0,66200.0,2.00301698]
[1722306931145,0.27494548,66201.0,66200.0,2.00101698]
[1722306931146,0.38653727,66201.0,66200.0,2.00101698]
[1722306931567,0.50638127,66201.0,66200.0,2.00001698]
[1722306931769,0.51764976,66201.0,66200.0,2.00001698]
[1722306931975,0.51764976,66201.0,66200.0,2.00101698]
[1722306932205,0.28666474,66201.0,66200.0,2.00101698]
[1722306932563,0.40664553,66201.0,66200.0,2.00101698]
[1722306933020,0.89002153,66201.0,66200.0,2.00101698]
[1722306933234,2.15041003,66201.0,66200.0,1.88785278]
[1722306933426,2.30869981,66201.0,66200.0,1.49798643]
[1722306933575,2.46070687,66201.0,66200.0,0.25800128]
[1722306933925,2.46070687,66201.0,66194.0,0.00935]
[1722306933926,1.490805,66195.0,66194.0,0.00935]
[1722306934037,2.26867067,66195.0,66194.0,0.00935]
[1722306934241,1.117758,66191.0,66177.0,0.00412065]
[1722306934468,1.117758,66191.0,66167.0,0.00412065]
[1722306934469,0.475446,66180.0,66167.0,0.00412065]
[1722306934783,2.10964135,66180.0,66160.0,0.00412065]
[1722306935003,2.26033567,66180.0,66160.0,0.00412065]
[1722306935425,2.29953567,66180.0,66160.0,0.00412065]
[1722306936232,2.32665721,66180.0,66160.0,0.00412065]
[1722306936636,2.08489321,66180.0,66160.0,0.00412065]
[1722306937215,2.32665721,66180.0,66160.0,0.00412065]
[1722306938023,2.41739721,66180.0,66160.0,0.00412065]
[1722306938236,2.44039721,66180.0,66160.0,0.00412065]
[1722306938698,2.41883745,66180.0,66160.0,0.00412065]
[1722306938901,1.50711513,66180.0,66161.0,0.241831]
[1722306939102,0.99407713,66180.0,66169.0,0.00412065]
[1722306939447,1.10972301,66180.0,66171.0,0.0621]
[1722306939997,1.35148701,66180.0,66166.0,0.04929434]
[1722306940217,1.30661016,66180.0,66166.0,0.04929434]
[1722306940432,1.45730448,66180.0,66166.0,0.04929434]
[1722306940807,1.21554048,66180.0,66166.0,0.04929434]
[1722306941007,1.21554048,66180.0,66166.0,0.17020034]
[1722306941206,1.21554048,66180.0,66167.0,0.120905]
[1722306942021,1.21554048,66180.0,66166.0,0.04929434]
[1722306942252,1.21554048,66180.0,66166.0,0.17020134]
[1722306942410,1.21554048,66180.0,66166.0,0.04929434]
[1722306942607,1.55265164,66180.0,66166.0,0.04929434]
[1722306942806,1.53265164,66180.0,66166.0,0.04929434]
[1722306943058,1.57752185,66180.0,66166.0,0.04929434]
[1722306943663,1.55265164,66180.0,66166.0,0.04929434]
[1722306944003,1.53265164,66180.0,66166.0,0.04929434]
[1722306944175,1.55265164,66180.0,66166.0,0.04929434]
[1722306944323,1.61995696,66180.0,66166.0,0.04929434]
[1722306944519,1.59995696,66180.0,66166.0,0.04929434]
[1722306944763,1.53265164,66180.0,66166.0,0.04929434]
[1722306944922,1.57749196,66180.0,66166.0,0.04929434]
[1722306945534,1.53265164,66180.0,66166.0,0.04929434]
[1722306945748,1.53265164,66180.0,66179.0,0.00049074]
[1722306945749,1.59990438,66180.0,66179.0,0.00049074]
[1722306946987,1.61990438,66180.0,66179.0,0.00049074]
[1722306947194,1.82356657,66180.0,66179.0,0.00049074]
[1722306947387,1.93565288,66180.0,66179.0,0.00049074]
[1722306947564,1.92565706,66180.0,66179.0,0.00049074]
[1722306947765,1.81356657,66180.0,66179.0,0.00049074]
[1722306948171,1.82356657,66180.0,66179.0,0.00049074]
[1722306948410,1.91324303,66180.0,66179.0,0.00049074]
[1722306948623,1.81939112,66180.0,66179.0,0.00049074]
[1722306949028,1.9534719,66180.0,66179.0,0.00049074]
[1722306949274,2.06015033,66180.0,66179.0,0.00049074]
[1722306949402,2.29456307,66180.0,66179.0,0.00049074]
[1722306949603,0.935742,66167.0,66166.0,0.04929434]
[1722306949825,1.63706121,66167.0,66166.0,0.04929434]
[1722306950034,0.634557,66164.0,66163.0,0.00935]
[1722306950247,1.48557821,66164.0,66163.0,0.00935]
[1722306950443,1.62930325,66164.0,66163.0,0.00935]
[1722306950602,1.89908408,66164.0,66163.0,0.00935]
[1722306950801,1.79147912,66164.0,66163.0,0.00935]
[1722306951054,1.85868174,66164.0,66163.0,0.00935]
[1722306951250,1.79147912,66164.0,66163.0,0.00935]
[1722306951461,1.97764755,66164.0,66163.0,0.00935]
[1722306951771,0.876468,66157.0,66156.0,0.00935]
[1722306951999,1.65520923,66157.0,66156.0,0.00935]
[1722306952206,1.85464931,66157.0,66156.0,0.00935]
[1722306952410,1.73850309,66157.0,66156.0,0.00935]
[1722306952883,1.71850309,66157.0,66156.0,0.00935]
[1722306953087,1.82264291,66157.0,66156.0,0.00935]
[1722306953278,1.84664291,66157.0,66156.0,0.00935]
[1722306953688,1.61914291,66157.0,66156.0,0.00935]
[1722306953926,1.57994291,66157.0,66156.0,0.00935]
[1722306954322,1.59994291,66157.0,66156.0,0.00935]
[1722306954463,1.60862138,66157.0,66156.0,0.00935]
[1722306954665,1.50193775,66157.0,66156.0,0.00935]
[1722306954865,1.60893577,66157.0,66156.0,0.00935]
[1722306955121,1.85078377,66157.0,66156.0,0.00935]
[1722306955334,1.60893577,66157.0,66156.0,0.00935]
[1722306956109,1.72581521,66157.0,66156.0,0.00935]
[1722306956313,0.86154545,66157.0,66156.0,0.00935]
[1722306956516,0.39009498,66157.0,66156.0,0.01347065]
[1722306956717,0.65986896,66157.0,66156.0,0.01347065]
[1722306957122,0.65986896,66157.0,66156.0,0.00935]
[1722306957123,0.90171696,66157.0,66156.0,0.00935]
[1722306957692,1.2491601,66157.0,66156.0,0.00935]
[1722306957799,1.39969044,66157.0,66156.0,0.00935]
[1722306958240,1.05223733,66157.0,66156.0,0.00935]
[1722306958449,1.29408533,66157.0,66156.0,0.00935]
[1722306958652,1.39975096,66157.0,66156.0,0.00935]
[1722306959049,1.15790296,66157.0,66156.0,0.00935]
[1722306959497,1.40975096,66157.0,66156.0,0.00935]
[1722306960480,1.39975096,66157.0,66156.0,0.00935]
[1722306960701,1.15680555,66157.0,66156.0,0.00935]
[1722306960854,1.42865355,66157.0,66156.0,0.00935]
[1722306961053,1.40865355,66157.0,66156.0,0.00935]
[1722306961608,1.52130801,66157.0,66156.0,0.00935]
[1722306961966,1.11893964,66157.0,66156.0,0.00935]
[1722306962172,0.63524364,66157.0,66156.0,0.00935]
[1722306962474,0.63524364,66157.0,66156.0,0.436428]
[1722306962475,0.17568498,66157.0,66156.0,0.436428]
[1722306962838,0.07111676,66157.0,66156.0,0.436428]
[1722306963047,0.07111676,66157.0,66156.0,0.67828]
[1722306963048,0.04585747,66157.0,66156.0,0.67828]
[1722306963176,0.03185747,66157.0,66156.0,0.67828]
[1722306963379,0.07534716,66164.0,66157.0,0.064]
[1722306963580,0.589303,66169.0,66162.0,0.986204]
[1722306963581,0.03279629,66163.0,66162.0,0.986204]
[1722306963788,0.03279629,66163.0,66162.0,1.13683704]
[1722306963789,0.0438832,66163.0,66162.0,1.13683704]
[1722306963990,0.4684,66169.0,66168.0,0.74432]
[1722306964211,0.4684,66169.0,66168.0,0.74844065]
[1722306964771,0.4634,66169.0,66168.0,0.74844065]
[1722306964936,0.4634,66169.0,66168.0,1.14088169]
[1722306965143,0.4634,66169.0,66168.0,1.16388169]
[1722306965997,1.2444,66176.0,66175.0,0.604457]
[1722306966148,1.2444,66176.0,66175.0,0.92501069]
[1722306966360,1.2444,66176.0,66175.0,1.26679369]
[1722306966714,0.47214716,66194.0,66186.0,0.604355]
[1722306966881,0.44444115,66193.0,66186.0,0.75127565]
[1722306967088,0.47214716,66194.0,66186.0,0.75127565]
[1722306969410,0.07634716,66187.0,66186.0,0.75227565]
[1722306970207,0.07534716,66187.0,66186.0,0.50953365]
[1722306970555,0.07634716,66187.0,66186.0,0.75227565]
[1722306970962,0.001,66187.0,66186.0,1.16765069]
[1722306971203,0.001,66187.0,66186.0,1.26865069]
[1722306971990,0.47214716,66194.0,66187.0,0.01]
[1722306972192,0.47214716,66194.0,66193.0,0.989409]
[1722306972391,0.47214716,66194.0,66193.0,1.16304204]
[1722306973874,0.47214716,66194.0,66193.0,1.16404204]
[1722306975987,0.07534716,66194.0,66193.0,1.16404204]
[1722306976310,0.07534716,66194.0,66193.0,1.16304204]
[1722306976538,0.07634716,66194.0,66193.0,1.17704204]
[1722306976715,0.07534716,66194.0,66193.0,1.16304204]
[1722306977066,0.07634716,66194.0,66193.0,1.17704204]
[1722306977683,0.07934716,66194.0,66193.0,1.17704204]
[1722306978092,0.07634716,66194.0,66193.0,1.17704204]
[1722306978316,0.07734716,66194.0,66193.0,1.17804204]
[1722306978848,0.07634716,66194.0,66193.0,1.17704204]
[1722306979244,0.07634716,66194.0,66193.0,1.16404204]
[1722306979443,0.001,66194.0,66193.0,1.51442029]
[1722306979587,0.001,66194.0,66193.0,1.53442029]
[1722306979794,0.001,66194.0,66193.0,1.54442029]
[1722306979995,0.001,66194.0,66193.0,1.52442029]
[1722306980362,0.001,66194.0,66193.0,1.28270329]
[1722306980518,0.001,66194.0,66193.0,1.54442029]
[1722306980947,0.002,66194.0,66193.0,1.77413729]
[1722306981150,0.001,66194.0,66193.0,1.78713729]
[1722306981497,0.002,66194.0,66193.0,1.51442029]
[1722306981674,0.002,66194.0,66193.0,1.52442029]
[1722306981867,0.001,66194.0,66193.0,1.52342029]
[1722306982024,0.00184,66194.0,66193.0,1.54342029]
[1722306982431,0.00284,66194.0,66193.0,1.55142029]
[1722306983807,0.00284,66194.0,66193.0,1.55342029]
[1722306984717,0.00384,66194.0,66193.0,1.55442029]
[1722306985431,0.00384,66194.0,66193.0,1.25770329]
[1722306985636,0.00384,66194.0,66193.0,1.49942029]
[1722306986344,0.00384,66194.0,66193.0,1.25770329]
[1722306986704,0.00384,66194.0,66193.0,1.28070329]
[1722306986907,0.00384,66194.0,66193.0,1.29070329]
[1722306987116,0.00384,66194.0,66193.0,1.28070329]
[1722306987691,0.00384,66194.0,66193.0,1.52242029]
[1722306987933,0.00384,66194.0,66193.0,1.53242029]
[1722306988093,0.00384,66194.0,66193.0,1.53442029]
[1722306988295,0.00384,66194.0,66193.0,1.77162029]
[1722306988700,0.07534716,66215.0,66214.0,0.12082]
[1722306988905,0.08603873,66215.0,66214.0,0.91965369]
[1722306989110,0.08603873,66215.0,66214.0,1.16129369]
[1722306989111,0.07534716,66215.0,66214.0,1.16129369]
[1722306990310,0.07634716,66215.0,66214.0,1.16129369]
[1722306990637,0.07734716,66215.0,66214.0,1.16929369]
[1722306991320,0.07734716,66215.0,66214.0,0.92765369]
[1722306991813,0.07734716,66215.0,66214.0,1.16929369]
[1722306993842,0.07734716,66215.0,66214.0,0.78985369]
[1722306994042,0.07734716,66215.0,66214.0,0.78573304]
[1722306994374,0.08734716,66215.0,66214.0,0.78696129]
[1722306994727,0.07734716,66215.0,66214.0,0.78596129]
[1722306995143,0.07734716,66215.0,66214.0,0.79496129]
[1722306996350,0.07734716,66215.0,66214.0,1.03660129]
[1722306998138,0.07734716,66215.0,66214.0,1.4263661]
[1722306998139,0.002,66215.0,66214.0,1.4263661]
[1722306998360,0.3968,66229.0,66228.0,0.845561]
[1722306998581,0.00851,66243.0,66237.0,0.362334]
[1722306998762,0.13218707,66238.0,66237.0,1.02319969]
[1722306998971,0.05683991,66238.0,66237.0,1.08769969]
[1722306999127,0.05827146,66242.0,66241.0,0.362313]
[1722306999326,0.0592496,66242.0,66241.0,0.53594604]
[1722306999982,0.0592496,66242.0,66241.0,0.77748804]
[1722307001173,0.0592496,66242.0,66241.0,0.54194604]
[1722307001577,0.0592496,66242.0,66241.0,0.53594604]
[1722307002157,0.0592496,66242.0,66241.0,0.77748804]
[1722307002974,0.0592496,66242.0,66241.0,0.006]
[1722307003171,0.0592496,66242.0,66239.0,0.120774]
[1722307003417,0.00851,66243.0,66237.0,0.00412065]
[1722307003727,0.00851,66243.0,66241.0,0.006]
[1722307003886,0.05101129,66242.0,66241.0,0.006]
[1722307004287,0.05101129,66242.0,66237.0,0.00412065]
[1722307004488,0.05101129,66242.0,66241.0,0.120771]
[1722307004699,0.05101129,66242.0,66241.0,0.362313]
[1722307004899,0.05101129,66242.0,66241.0,0.603855]
[1722307005291,0.05101129,66242.0,66241.0,0.845397]
[1722307005504,0.00851,66243.0,66242.0,0.603845]
[1722307005747,0.00851,66243.0,66242.0,1.11901604]
[1722307007496,0.00851,66243.0,66242.0,1.13201604]
[1722307008103,0.00851,66243.0,66242.0,0.02151]
[1722307008222,0.05135533,66243.0,66242.0,0.013]
[1722307008427,0.18335939,66243.0,66242.0,0.013]
[1722307008627,0.25870655,66243.0,66242.0,0.013]
[1722307009035,0.13793955,66243.0,66242.0,0.013]
[1722307009300,0.13893955,66243.0,66242.0,0.021]
[1722307009815,0.24176886,66243.0,66242.0,0.013]
[1722307010016,0.44166315,66243.0,66242.0,0.013]
[1722307010227,1.22895229,66243.0,66242.0,0.00109492]
[1722307010509,1.17551221,66243.0,66242.0,0.00109492]
[1722307010710,1.27712361,66243.0,66242.0,0.00109492]
[1722307010910,1.79168919,66243.0,66242.0,0.00109492]
[1722307011141,1.88176481,66243.0,66242.0,9.968e-05]
[1722307011291,1.88176334,66243.0,66242.0,9.968e-05]
[1722307011452,1.91444274,66243.0,66242.0,9.968e-05]
[1722307011653,2.03527752,66243.0,66242.0,9.968e-05]
[1722307011879,1.89978518,66243.0,66242.0,9.968e-05]
[1722307012395,1.90070627,66243.0,66242.0,9.968e-05]
[1722307013154,0.89031914,66243.0,66242.0,9.968e-05]
[1722307013517,1.13185314,66243.0,66242.0,9.968e-05]
[1722307013734,0.76955214,66243.0,66242.0,9.968e-05]
[1722307013933,0.98537755,66243.0,66242.0,9.968e-05]
[1722307014139,0.67455214,66243.0,66242.0,9.968e-05]
[1722307014329,0.24604346,66243.0,66242.0,0.36240668]
[1722307014490,0.14293955,66243.0,66242.0,0.362307]
[1722307015089,0.13793955,66243.0,66242.0,0.120769]
[1722307015483,0.15093955,66243.0,66242.0,0.121769]
[1722307015707,0.15093955,66243.0,66242.0,0.001]
[1722307015900,0.16622562,66243.0,66238.0,0.00022823]
[1722307016123,0.362323,66239.0,66238.0,0.00434888]
[1722307016323,0.65547198,66239.0,66238.0,0.00434888]
[1722307016680,1.18630168,66239.0,66238.0,0.00434888]
[1722307016880,1.30982337,66239.0,66238.0,0.00434888]
[1722307017074,0.95569324,66239.0,66238.0,0.00434888]
[1722307017281,0.95569324,66239.0,66238.0,0.00634888]
[1722307017521,1.19724224,66239.0,66238.0,0.00534888]
[1722307017683,0.95569324,66239.0,66238.0,0.00534888]
[1722307017864,1.07736884,66239.0,66238.0,0.00634888]
[1722307018080,1.31891784,66239.0,66238.0,0.00634888]
[1722307018256,1.44779124,66239.0,66238.0,0.00634888]
[1722307018461,1.03656268,66239.0,66238.0,0.00122823]
[1722307018676,1.20362402,66239.0,66238.0,0.00222823]
[1722307018883,1.21562402,66239.0,66238.0,0.00222823]
[1722307020110,1.21562402,66239.0,66238.0,0.00036085]
[1722307020601,1.35085522,66239.0,66238.0,0.00036085]
[1722307020810,1.35085522,66239.0,66238.0,3.358e-05]
[1722307020811,1.44736124,66239.0,66238.0,3.358e-05]
[1722307021065,1.34215939,66239.0,66238.0,3.358e-05]
[1722307021263,1.44600715,66239.0,66238.0,3.358e-05]
[1722307021588,1.44689028,66239.0,66238.0,3.358e-05]
[1722307021743,0.4634257,66239.0,66238.0,0.48313958]
[1722307021944,0.07478589,66239.0,66238.0,0.36236258]
[1722307022143,0.07478589,66239.0,66238.0,3.358e-05]
[1722307022344,0.43710889,66239.0,66238.0,3.358e-05]
[1722307022628,0.36883726,66239.0,66238.0,0.12080958]
[1722307022832,0.57276061,66239.0,66234.0,0.241565]
[1722307023034,0.57276061,66239.0,66237.0,0.120777]
[1722307023035,0.04284533,66238.0,66237.0,0.120777]
[1722307023241,0.08794594,66238.0,66237.0,0.603889]
[1722307023446,0.05378773,66238.0,66237.0,0.845445]
[1722307025253,0.05378773,66238.0,66237.0,0.924245]
[1722307025408,0.05378773,66238.0,66237.0,0.947245]
[1722307026015,0.05378773,66238.0,66237.0,0.362333]
[1722307026217,0.05378773,66238.0,66234.0,0.00412065]
[1722307026218,0.12144387,66238.0,66234.0,0.00412065]
[1722307026391,0.16555535,66235.0,66234.0,0.00412065]
[1722307026598,0.53633386,66235.0,66234.0,0.00412065]
[1722307026797,0.52446944,66235.0,66234.0,0.00412065]
[1722307027114,0.42060047,66235.0,66234.0,0.00412065]
[1722307027517,0.42040944,66235.0,66234.0,0.00412065]
[1722307028100,0.41114501,66235.0,66234.0,0.00412065]
[1722307028305,0.41114501,66235.0,66234.0,0.00512065]
[1722307028659,0.41995427,66235.0,66234.0,0.00412065]
[1722307028891,0.41116003,66235.0,66234.0,0.00412065]
[1722307029032,0.41999487,66235.0,66234.0,0.00412065]
[1722307029467,0.41117313,66235.0,66234.0,0.00512065]
[1722307029966,0.12916639,66235.0,66234.0,0.00412065]
[1722307030149,0.02916639,66235.0,66234.0,0.00412065]
[1722307030384,0.20116265,66235.0,66234.0,0.00412065]
[1722307030522,0.19880969,66235.0,66234.0,0.00412065]
[1722307030907,0.11946842,66235.0,66234.0,0.12490365]
[1722307031107,0.11946842,66235.0,66234.0,1.16943769]
[1722307031108,0.07431704,66235.0,66234.0,1.16943769]
[1722307031368,0.01819249,66235.0,66234.0,1.16943769]
[1722307031807,0.005,66238.0,66237.0,0.845446]
[1722307032007,0.005,66238.0,66237.0,1.02319969]
[1722307032211,0.01488603,66238.0,66237.0,1.02319969]
[1722307032386,0.005,66238.0,66237.0,1.02319969]
[1722307032802,0.04515315,66239.0,66238.0,0.845435]
[1722307033065,0.08385716,66243.0,66242.0,0.362307]
[1722307033180,0.08385716,66243.0,66242.0,0.603845]
[1722307033382,0.26326294,66243.0,66242.0,0.603845]
[1722307033734,0.35358883,66243.0,66242.0,0.603845]
[1722307034518,0.35558883,66243.0,66242.0,0.603845]